bitfinex/quotes_SOLUSD_20250722
["timestamp","ask_amount","ask_price","bid_price","bid_amount"]
[1753169438999,16.78468397,200.74,200.73,5.33822874]
[1753169439304,61.4665962,200.74,200.73,0.35641237]
[1753169439499,66.44816439,200.74,200.73,0.35641237]
[1753169440120,20.34318397,200.73,200.7,0.03]
[1753169440406,23.94390018,200.71,200.7,0.03]
[1753169440800,60.84390018,200.71,200.7,0.03]
[1753169441111,36.22,200.71,200.7,7.90921621]
[1753169441605,36.22,200.71,200.7,0.03]
[1753169441806,53.00468397,200.71,200.7,0.03]
[1753169442691,60.84390018,200.71,200.7,0.03]
[1753169445118,60.86390018,200.71,200.7,0.03]
[1753169445808,61.48668927,200.71,200.7,0.03]
[1753169447924,17.40747306,200.71,200.7,0.03]
[1753169448109,60.18390018,200.71,200.7,0.03]
[1753169448813,53.02468397,200.71,200.7,0.03]
[1753169449197,53.64747306,200.71,200.7,0.03]
[1753169450328,17.40747306,200.71,200.7,0.03]
[1753169450506,60.80668927,200.71,200.7,0.03]
[1753169450821,61.48668927,200.71,200.7,0.03]
[1753169451117,54.32747306,200.71,200.7,0.03]
[1753169451320,25.24668927,200.71,200.7,0.03]
[1753169451624,61.48668927,200.71,200.7,0.03]
[1753169452303,66.46900205,200.71,200.7,0.03]
[1753169452527,20.52938397,200.69,200.68,0.03]
[1753169452700,64.55145134,200.69,200.68,0.03]
[1753169452900,64.55145134,200.69,200.65,0.03]
[1753169452901,42.78468397,200.66,200.65,0.03]
[1753169453109,23.83348397,200.65,200.64,0.2]
[1753169453415,16.78468397,200.63,200.62,0.03]
[1753169453626,60.80693761,200.63,200.62,0.03]
[1753169453795,61.48693761,200.63,200.62,0.03]
[1753169455025,61.48693761,200.63,200.52,4.98703371]
[1753169455224,16.78468397,200.54,200.52,4.98703371]
[1753169455407,53.64803209,200.53,200.52,4.98703371]
[1753169455731,53.64803209,200.53,200.52,5.70703371]
[1753169455899,0.68,200.61,200.52,12.86624992]
[1753169456101,16.78468397,200.55,200.52,5.70703371]
[1753169456411,16.78468397,200.53,200.51,4.98722986]
[1753169456618,53.64806318,200.52,200.51,4.98722986]
[1753169456816,53.64806318,200.52,200.5,5.01750505]
[1753169457020,53.04468397,200.51,200.5,5.01750505]
[1753169457614,53.04468397,200.51,200.5,0.75]
[1753169458123,53.04468397,200.51,200.5,0.03]
[1753169458428,60.82731048,200.51,200.5,0.03]
[1753169459105,17.40809427,200.51,200.5,0.03]
[1753169459303,16.78468397,200.51,200.5,0.75]
[1753169459503,53.04468397,200.51,200.5,5.73753117]
[1753169459705,16.78468397,200.51,200.5,5.01753117]
[1753169459901,16.78468397,200.51,200.5,5.73753117]
[1753169460313,16.78468397,200.56,200.53,26.0]
[1753169460513,16.78468397,200.6,200.55,7.15921621]
[1753169460813,23.94390018,200.58,200.52,0.72]
[1753169461019,36.88316167,200.59,200.5,0.03]
[1753169461020,16.78468397,200.52,200.5,0.03]
[1753169461232,16.78468397,200.54,200.5,0.03]
[1753169461233,60.82731048,200.51,200.5,0.03]
[1753169461532,17.40809427,200.51,200.5,0.03]
[1753169461715,53.66809427,200.51,200.5,0.03]
[1753169461916,61.50731048,200.51,200.5,0.03]
[1753169462245,61.50731048,200.51,200.45,0.03]
[1753169462246,42.78468397,200.47,200.45,0.03]
[1753169462536,60.82746597,200.46,200.45,0.03]
[1753169462714,61.50746597,200.46,200.45,0.03]
[1753169462914,71.50746597,200.46,200.45,0.03]
[1753169463633,24.56746597,200.46,200.45,0.03]
[1753169463829,65.83599235,200.46,200.45,0.03]
[1753169464011,60.84746597,200.46,200.45,0.03]
[1753169464207,66.51599235,200.46,200.45,0.03]
[1753169464636,34.35328397,200.45,200.44,0.03]
[1753169464841,42.78468397,200.42,200.33,4.99176264]
[1753169465132,86.82759043,200.42,200.32,5.71198416]
[1753169465334,42.78468397,200.39,200.29,0.03]
[1753169465507,86.8276838,200.39,200.29,0.03]
[1753169465704,92.49795277,200.39,200.29,0.03]
[1753169465926,92.49795277,200.39,200.29,5.02269273]
[1753169466135,92.49795277,200.39,200.29,0.75]
[1753169466443,92.49795277,200.39,200.29,5.74274396]
[1753169466812,92.49795277,200.39,200.3,4.99249215]
[1753169467015,16.78468397,200.38,200.29,0.75]
[1753169467223,88.18894123,200.39,200.29,0.75]
[1753169467224,23.94390018,200.3,200.29,0.03]
[1753169467421,60.22390018,200.3,200.29,0.03]
[1753169467832,36.28,200.3,200.29,7.90921621]
[1753169468014,53.06468397,200.3,200.29,7.65618528]
[1753169468330,53.06468397,200.3,200.29,0.49696907]
[1753169468714,16.78468397,200.34,200.3,26.0]
[1753169468911,53.70865441,200.33,200.32,7.15921621]
[1753169469126,53.70865441,200.33,200.3,26.0]
[1753169469326,16.78468397,200.32,200.28,7.15921621]
[1753169469645,36.92403274,200.31,200.29,7.15921621]
[1753169470140,53.70871671,200.31,200.3,5.65251123]
[1753169470440,53.70871671,200.31,200.3,12.81172744]
[1753169471026,53.70871671,200.31,200.3,5.65251123]
[1753169471342,53.70871671,200.31,200.3,12.81172744]
[1753169472039,36.3,200.31,200.3,50.63300552]
[1753169472229,36.3,200.31,200.3,51.29300552]
[1753169472542,36.3,200.31,200.3,38.81172744]
[1753169473231,36.3,200.31,200.3,12.81172744]
[1753169474241,36.3,200.31,200.27,12.48302744]
[1753169474242,16.78468397,200.3,200.29,4.99274886]
[1753169474518,17.40874787,200.3,200.29,4.99274886]
[1753169475317,17.40874787,200.3,200.26,7.15921621]
[1753169475518,17.40874787,200.3,200.27,0.66]
[1753169475519,16.78468397,200.28,200.27,0.66]
[1753169475732,17.40881019,200.28,200.27,7.15921621]
[1753169475935,36.3,200.29,200.28,4.99300978]
[1753169476156,36.3,200.29,200.28,12.15222599]
[1753169476317,36.3,200.29,200.28,12.81222599]
[1753169476719,36.3,200.3,200.28,38.81222599]
[1753169476917,16.78468397,200.36,200.29,7.81921621]
[1753169477220,16.78468397,200.34,200.33,7.15921621]
[1753169477440,36.92390816,200.35,200.33,7.81921621]
[1753169477722,0.62369025,200.42,200.37,26.0]
[1753169478029,0.62369025,200.42,200.34,18.27841621]
[1753169478030,36.3,200.45,200.42,17.463327]
[1753169478245,36.3,200.45,200.44,7.15921621]
[1753169478549,53.08468397,200.45,200.44,7.81921621]
[1753169478731,36.3,200.45,200.44,7.81921621]
[1753169478931,36.3,200.45,200.38,13.13609481]
[1753169478932,43.45921621,200.45,200.38,13.13609481]
[1753169479127,16.78468397,200.4,200.35,0.66]
[1753169479342,16.78468397,200.38,200.36,7.15921621]
[1753169479540,0.62384588,200.37,200.36,7.15921621]
[1753169479737,17.40849872,200.38,200.36,7.81921621]
[1753169479943,17.40849872,200.38,200.37,0.66]
[1753169480135,17.40849872,200.38,200.37,5.65076708]
[1753169480445,17.40849872,200.38,200.34,7.81921621]
[1753169480626,17.40849872,200.38,200.35,26.0]
[1753169481022,23.94390018,200.36,200.31,12.1514782]
[1753169481231,16.78468397,200.34,200.32,0.66]
[1753169481457,0.71,200.41,200.31,24.63213318]
[1753169481458,16.78468397,200.32,200.31,38.1514782]
[1753169481624,16.78468397,200.32,200.31,30.99226199]
[1753169481826,16.78468397,200.32,200.3,4.99247749]
[1753169482043,17.40871671,200.31,200.3,4.99247749]
[1753169482948,17.40871671,200.31,200.3,5.65247749]
[1753169483126,53.70871671,200.31,200.3,5.65247749]
[1753169483326,36.3,200.31,200.3,25.29297178]
[1753169483563,36.3,200.31,200.3,18.13375557]
[1753169483733,36.3,200.31,200.3,12.8116937]
[1753169483927,7.78312437,200.35,200.3,12.8116937]
[1753169483928,16.78468397,200.34,200.3,25.29297178]
[1753169484249,16.78468397,200.36,200.33,50.63038877]
[1753169484431,0.62390816,200.35,200.33,38.8109798]
[1753169484749,0.62390816,200.35,200.33,38.1509798]
[1753169484946,0.62390816,200.35,200.33,4.99176359]
[1753169485242,16.78468397,200.33,200.31,4.99201824]
[1753169485452,0.62400159,200.32,200.31,4.99201824]
[1753169485755,0.62400159,200.32,200.3,0.03]
[1753169485756,16.78468397,200.31,200.3,5.02246215]
[1753169485930,53.08468397,200.31,200.3,5.02246215]
[1753169486129,36.3,200.31,200.3,12.84167836]
[1753169486325,16.78468397,200.34,200.3,25.32295644]
[1753169486544,16.78468397,200.32,200.3,12.84167836]
[1753169486850,17.40868556,200.32,200.3,12.18167836]
[1753169487051,17.40868556,200.32,200.3,5.02246215]
[1753169487945,17.40868556,200.32,200.3,12.18167836]
[1753169488174,17.40868556,200.32,200.31,7.81921621]
[1753169488336,36.3,200.34,200.31,7.81921621]
[1753169488659,16.78468397,200.34,200.33,7.15921621]
[1753169488833,17.40862327,200.34,200.33,7.81921621]
[1753169489456,17.40862327,200.34,200.33,26.66]
[1753169489634,17.40862327,200.34,200.33,33.81921621]
[1753169490156,17.40862327,200.34,200.33,30.99176359]
[1753169492855,17.40862327,200.34,200.33,4.99176359]
[1753169493037,17.46862327,200.34,200.33,4.99176359]
[1753169493631,17.46862327,200.34,200.33,30.99176359]
[1753169493856,25.33783948,200.34,200.3,0.03]
[1753169494028,36.3,200.33,200.3,5.02245954]
[1753169494229,16.78468397,200.31,200.3,12.18167575]
[1753169494452,53.08468397,200.31,200.3,12.18167575]
[1753169494653,53.08468397,200.31,200.3,5.02245954]
[1753169495734,53.08468397,200.31,200.3,12.18167575]
[1753169496344,53.08468397,200.31,200.3,12.84167575]
[1753169496543,53.08468397,200.33,200.3,25.32295383]
[1753169496753,17.40868556,200.32,200.31,0.66]
[1753169497140,17.40868556,200.32,200.3,12.51127808]
[1753169497326,17.40868556,200.32,200.3,0.03]
[1753169497530,53.08468397,200.31,200.3,0.03]
[1753169498445,0.06,200.34,200.3,7.88921621]
[1753169498766,53.08468397,200.33,200.32,7.15921621]
[1753169499056,53.08468397,200.33,200.31,7.15921621]
[1753169499356,0.62400159,200.32,200.31,4.99226199]
[1753169499663,16.78468397,200.31,200.3,0.03]
[1753169499950,17.45468397,200.31,200.3,0.03]
[1753169501136,16.78468397,200.31,200.3,0.03]
[1753169501354,21.93931303,200.31,200.3,0.03]
[1753169501736,21.26931303,200.31,200.3,0.03]
[1753169502137,16.78468397,200.31,200.3,0.03]
[1753169502345,31.41620408,200.31,200.3,0.03]
[1753169502956,17.45468397,200.31,200.3,0.03]
[1753169503152,61.55708247,200.31,200.3,0.03]
[1753169503363,66.54934446,200.31,200.3,0.03]
[1753169503882,51.2983,200.2,200.03,1.997055]
[1753169504180,16.78468397,199.96,199.92,15.57]
[1753169504457,16.78468397,199.96,199.85,0.7]
[1753169504458,16.78468397,199.92,199.85,0.7]
[1753169504669,16.78468397,199.87,199.85,0.7]
[1753169504965,0.6254378,199.86,199.85,0.7]
[1753169505167,16.78468397,199.92,199.88,5.0030018]
[1753169505347,0.62521882,199.93,199.89,0.7]
[1753169505348,16.78468397,199.9,199.89,0.7]
[1753169505742,16.78468397,199.9,199.86,42.84332573]
[1753169505940,16.78468397,199.88,199.86,5.70332573]
[1753169506154,0.67,199.99,199.87,0.7]
[1753169506446,7.17836576,199.96,199.87,0.7]
[1753169506653,7.17836576,199.96,199.9,7.17836576]
[1753169506848,16.78468397,199.96,199.9,7.17836576]
[1753169507049,16.78468397,199.98,199.93,7.17836576]
[1753169507367,23.96304973,199.98,199.92,12.18025548]
[1753169507552,23.96304973,199.98,199.92,5.00188972]
[1753169507751,16.78468397,199.99,199.93,7.17836576]
[1753169507950,16.78468397,199.99,199.94,7.17836576]
[1753169508141,16.78468397,200.0,199.98,7.17836576]
[1753169508464,16.78468397,200.05,199.98,26.0]
[1753169508653,16.78468397,200.05,200.0,7.17836576]
[1753169508837,0.67,200.05,200.01,7.17836576]
[1753169509039,16.78468397,200.04,200.01,7.17836576]
[1753169509268,0.67,200.05,200.02,7.17836576]
[1753169509439,16.78468397,200.04,200.0,7.17836576]
[1753169509640,16.78468397,200.02,200.0,7.17836576]
[1753169509943,17.45468397,200.06,200.01,7.17836576]
[1753169510164,16.78468397,200.04,199.98,31.00026337]
[1753169510375,16.78468397,200.04,200.0,7.17836576]
[1753169510668,16.78468397,200.07,200.03,7.17836576]
[1753169510837,16.78468397,200.07,200.04,7.17836576]
[1753169511042,16.78468397,200.08,200.04,7.17836576]
[1753169511239,17.45468397,200.08,200.05,4.99875031]
[1753169511439,16.78468397,200.08,200.05,12.17711607]
[1753169511666,16.78468397,200.09,200.05,11.67711607]
[1753169511854,16.78468397,200.09,200.05,4.49875031]
[1753169512165,0.67,200.08,200.05,4.49875031]
[1753169512761,16.78468397,200.09,200.05,11.67711607]
[1753169512963,16.78468397,200.11,200.07,7.17836576]
[1753169513264,16.78468397,200.11,200.07,4.99825061]
[1753169513265,0.67,200.1,200.07,4.99825061]
[1753169513454,16.78468397,200.09,200.07,4.99825061]
[1753169514753,3.7596,200.13,200.07,4.99825061]
[1753169514754,0.67,200.08,200.07,4.99825061]
[1753169514960,7.84836576,200.08,200.03,5.02903718]
[1753169515158,16.78468397,200.04,200.03,0.03]
[1753169515357,23.96304973,200.04,200.03,0.03]
[1753169515572,24.63304973,200.04,200.03,0.03]
[1753169516559,16.78468397,200.05,200.03,0.03]
[1753169516747,23.96304973,200.05,200.03,0.03]
[1753169516954,16.78468397,200.05,200.03,0.03]
[1753169517153,17.45468397,200.05,200.03,0.03]
[1753169517947,16.78468397,200.05,200.03,0.03]
[1753169518463,16.78468397,200.08,200.04,17.49650068]
[1753169518647,17.45468397,200.08,200.04,17.49650068]
[1753169518848,24.63304973,200.08,200.04,17.49650068]
[1753169519267,23.96304973,200.08,200.04,4.99900019]
[1753169519469,37.02,200.09,200.04,4.99900019]
[1753169519470,23.96304973,200.06,200.04,4.99900019]
[1753169519675,17.45468397,200.06,200.04,4.99900019]
[1753169519875,24.63304973,200.06,200.04,4.99900019]
[1753169520343,37.02,200.09,200.03,0.03]
[1753169520344,16.78468397,200.08,200.03,0.03]
[1753169520548,16.78468397,200.06,200.03,0.03]
[1753169520749,23.96304973,200.06,200.03,0.03]
[1753169520955,23.96304973,200.04,200.03,0.03]
[1753169521370,24.63304973,200.04,200.03,0.03]
[1753169521550,16.78468397,200.04,200.03,0.03]
[1753169522068,16.78468397,200.04,200.02,6.60925984]
[1753169522255,16.78468397,200.08,200.03,7.87836576]
[1753169522576,16.78468397,200.08,200.04,24.67486644]
[1753169522872,16.78468397,200.08,200.04,25.37486644]
[1753169523067,16.78468397,200.08,200.04,17.49650068]
[1753169523274,17.45468397,200.08,200.04,17.49650068]
[1753169523470,17.45468397,200.08,200.04,24.67486644]
[1753169523972,16.78468397,200.08,200.05,7.17836576]
[1753169524173,16.78468397,200.08,200.04,17.49650068]
[1753169524358,16.78468397,200.08,200.05,7.17836576]
[1753169524558,16.78468397,200.1,200.06,17.49475156]
[1753169524859,17.45468397,200.1,200.06,17.49475156]
[1753169526051,16.78468397,200.1,200.06,24.67311732]
[1753169526467,16.78468397,200.1,200.06,17.49475156]
[1753169527060,24.63304973,200.1,200.06,17.49475156]
[1753169527656,7.17836576,200.08,200.06,17.49475156]
[1753169527952,16.78468397,200.07,200.06,17.49475156]
[1753169528166,7.83836576,200.07,200.06,4.99850044]
[1753169528365,7.17836576,200.07,200.06,4.99850044]
[1753169528682,7.83836576,200.07,200.02,17.49765167]
[1753169528858,16.78468397,200.05,200.02,17.49765167]
[1753169529267,23.96304973,200.05,200.02,17.49765167]
[1753169529468,16.78468397,200.03,200.02,4.99950004]
[1753169529663,23.96304973,200.03,200.02,4.99950004]
[1753169529860,24.62304973,200.03,200.02,4.99950004]
[1753169530762,24.62304973,200.03,199.96,17.5035007]
[1753169530978,7.17836576,199.97,199.96,5.0010002]
[1753169531276,24.62304973,199.97,199.96,5.0010002]
[1753169531780,16.78468397,199.97,199.96,5.0010002]
[1753169532665,16.78468397,199.96,199.95,5.00125031]
[1753169533183,16.78468397,199.99,199.95,17.50437609]
[1753169533896,8.0845,200.07,199.98,7.17836576]
[1753169534055,36.82,200.06,200.02,7.17836576]
[1753169534455,36.82,200.06,200.01,7.17836576]
[1753169534681,37.48,200.06,200.01,17.49912504]
[1753169534975,7.83836576,200.05,200.01,17.49912504]
[1753169535177,7.17836576,200.02,200.01,4.99975001]
[1753169535380,0.66,200.04,200.01,4.99975001]
[1753169535381,7.17836576,200.03,200.01,4.99975001]
[1753169535597,7.17836576,200.02,200.01,4.99975001]
[1753169535892,23.96304973,200.02,200.01,4.99975001]
[1753169536772,44.65836576,200.03,199.98,12.50105614]
[1753169536972,16.78468397,200.02,199.98,12.50105614]
[1753169537665,44.65836576,200.03,199.98,12.50105614]
[1753169537666,36.82,200.03,200.01,7.17836576]
[1753169537878,36.82,200.03,199.99,0.66]
[1753169538063,36.82,200.03,199.99,7.83836576]
[1753169538269,36.78,200.06,200.01,7.17836576]
[1753169538578,36.78,200.06,200.01,0.66]
[1753169538774,0.66,200.05,200.02,17.49825016]
[1753169538973,43.95836576,200.06,200.02,17.49825016]
[1753169539187,0.66,200.05,200.02,17.49825016]
[1753169539385,0.66,200.04,200.02,17.49825016]
[1753169539679,16.78468397,200.05,200.02,17.49825016]
[1753169539856,16.78468397,200.03,200.02,17.49825016]
[1753169540875,36.78,200.06,200.02,19.67711588]
[1753169541062,16.78468397,200.05,200.03,7.17836576]
[1753169541676,16.78468397,200.06,200.03,7.17836576]
[1753169542181,16.78468397,200.1,200.05,7.17836576]
[1753169542382,87.3,200.11,200.02,12.49875012]
[1753169542383,53.54468397,200.11,200.08,7.17836576]
[1753169542877,16.78468397,200.12,200.11,4.99725151]
[1753169543489,24.62304973,200.12,200.07,12.49539841]
[1753169543661,7.83836576,200.11,200.08,4.99800079]
[1753169543986,23.96304973,200.12,200.08,17.49300278]
[1753169544304,16.78468397,200.12,200.09,7.17836576]
[1753169544475,16.78468397,200.12,200.08,18.15300278]
[1753169544476,23.96304973,200.12,200.08,4.99800079]
[1753169544786,0.66,200.11,200.08,4.99800079]
[1753169544987,0.66,200.11,200.07,17.49387714]
[1753169545564,23.96304973,200.12,200.07,24.6722429]
[1753169545565,16.78468397,200.12,200.07,24.6722429]
[1753169545887,16.78468397,200.12,200.07,25.3322429]
[1753169547678,24.62304973,200.12,200.07,17.49387714]
[1753169547869,24.62304973,200.12,200.07,24.6722429]
[1753169548862,24.62304973,200.12,200.07,12.49562653]
[1753169549388,24.62304973,200.12,200.05,4.99875031]
[1753169549389,16.78468397,200.07,200.05,4.99875031]
[1753169549595,16.78468397,200.07,200.01,0.66]
[1753169549596,24.62304973,200.06,200.01,12.49922076]
[1753169549765,16.78468397,200.03,200.01,12.49922076]
[1753169552268,16.78468397,200.01,199.96,5.0010002]
[1753169552486,12.19090595,200.06,199.96,5.0010002]
[1753169552487,23.96304973,199.99,199.96,5.0010002]
[1753169552681,16.78468397,199.99,199.95,17.53419094]
[1753169552987,16.78468397,199.99,199.95,25.3725567]
[1753169553189,16.78468397,199.99,199.96,0.66]
[1753169553884,16.78468397,199.99,199.95,24.7125567]
[1753169554090,16.78468397,199.99,199.97,0.66]
[1753169554390,16.78468397,199.99,199.97,7.17836576]
[1753169554600,16.78468397,200.02,199.98,7.83836576]
[1753169554892,16.78468397,200.02,199.99,5.00025001]
[1753169555506,3.5725,200.07,200.01,7.17836576]
[1753169555678,53.36468397,200.06,200.02,7.17836576]
[1753169555877,53.36468397,200.06,200.02,7.83836576]
[1753169556076,60.54304973,200.06,200.0,7.17836576]
[1753169556281,16.78468397,200.04,199.99,24.6792408]
[1753169556574,16.78468397,200.04,199.96,36.6]
[1753169556575,16.78468397,199.99,199.96,5.0010002]
[1753169556777,16.78468397,199.97,199.95,0.03]
[1753169556981,23.96304973,199.97,199.95,0.03]
[1753169557189,23.96304973,199.96,199.95,0.03]
[1753169557390,61.22304973,199.96,199.95,0.03]
[1753169558985,53.38468397,199.96,199.95,0.03]
[1753169559382,36.58,199.98,199.95,0.03]
[1753169559585,16.78468397,199.97,199.95,0.03]
[1753169560982,16.78468397,199.97,199.95,5.03125031]
[1753169561778,60.50304973,199.96,199.95,0.03]
[1753169562003,61.21304973,199.96,199.95,0.03]
[1753169564796,66.21404993,199.96,199.95,0.03]
[1753169566109,61.21304973,199.96,199.95,0.03]
[1753169566848,70.09114993,199.96,199.95,0.03]
[1753169567410,70.09114993,199.96,199.84,5.0040032]
[1753169567411,42.78468397,199.92,199.84,5.0040032]
[1753169567608,7.17836576,199.85,199.83,0.03]
[1753169567810,53.28468397,199.84,199.83,0.03]
[1753169567988,60.46304973,199.84,199.83,0.03]
[1753169568391,53.28468397,199.84,199.83,5.03425361]
[1753169568590,53.28468397,199.84,199.83,0.03]
[1753169568790,53.28468397,199.84,199.83,5.03425361]
[1753169569392,16.78468397,199.84,199.83,0.03]
[1753169569694,0.71,199.89,199.83,7.92836576]
[1753169569695,36.48,199.85,199.83,7.92836576]
[1753169570032,36.48,199.85,199.84,0.72]
[1753169570490,16.78468397,199.88,199.84,0.72]
[1753169570694,16.78468397,199.86,199.84,7.89836576]
[1753169570935,26.0,199.92,199.85,7.89836576]
[1753169571098,36.48,199.91,199.88,7.17836576]
[1753169571425,53.26468397,199.9,199.88,5.0030018]
[1753169572096,7.17836576,199.89,199.85,5.00375281]
[1753169572293,16.78468397,199.87,199.85,5.00375281]
[1753169572710,36.48,199.86,199.85,5.00375281]
[1753169572911,53.26468397,199.86,199.85,5.00375281]
[1753169573416,53.26468397,199.86,199.83,5.03425361]
[1753169573609,53.26468397,199.86,199.83,12.93261937]
[1753169574210,53.26468397,199.86,199.84,0.72]
[1753169575697,53.26468397,199.86,199.85,5.00375281]
[1753169576314,53.26468397,199.86,199.84,5.00392596]
[1753169577930,36.46,199.9,199.85,7.89836576]
[1753169578223,36.46,199.92,199.89,7.17836576]
[1753169578423,36.46,199.92,199.91,7.17836576]
[1753169578723,36.46,199.92,199.91,7.89836576]
[1753169578930,16.78468397,199.95,199.91,7.89836576]
[1753169578931,4.6856,200.01,199.91,7.89836576]
[1753169579104,36.46,199.99,199.95,7.17836576]
[1753169579295,13.12537972,200.05,199.96,7.89836576]
[1753169579496,7.17836576,200.02,199.96,7.89836576]
[1753169579813,13.12537972,200.05,199.9,26.0]
[1753169579814,16.78468397,200.0,199.97,5.00075011]
[1753169580002,16.78468397,199.98,199.97,5.00075011]
[1753169580336,24.67304973,199.98,199.89,5.00275151]
[1753169580510,17.17836576,200.04,199.91,7.17836576]
[1753169580511,7.88836576,199.97,199.91,7.17836576]
[1753169580826,4.99982343,200.01,199.96,7.17836576]
[1753169580827,36.46,199.98,199.96,7.17836576]
[1753169581012,16.78468397,199.98,199.96,7.89836576]
[1753169581207,16.78468397,199.98,199.92,26.72]
[1753169581402,16.78468397,199.98,199.94,7.17836576]
[1753169581605,16.78468397,199.98,199.95,7.17836576]
[1753169581911,17.49468397,199.98,199.93,7.17836576]
[1753169582121,0.06,199.96,199.93,7.17836576]
[1753169582430,0.06,199.96,199.93,26.0]
[1753169583015,36.48,199.95,199.91,0.72]
[1753169583207,23.96304973,199.94,199.89,0.03]
[1753169583518,23.96304973,199.9,199.89,0.03]
[1753169583725,53.32468397,199.9,199.89,0.03]
[1753169583907,16.78468397,199.9,199.89,0.03]
[1753169584106,60.50304973,199.9,199.89,0.03]
[1753169584412,66.21555098,199.9,199.89,0.03]
[1753169585440,66.21555098,199.9,199.83,0.03]
[1753169585441,26.0,199.88,199.83,0.03]
[1753169585650,23.96304973,199.84,199.83,0.03]
[1753169585949,60.54304973,199.84,199.83,0.03]
[1753169586450,66.25705293,199.84,199.83,0.03]
[1753169586633,73.63485293,199.84,199.83,0.03]
[1753169587632,42.78468397,199.82,199.81,0.1]
[1753169587837,98.70591954,199.82,199.81,0.1]
[1753169588127,99.39591954,199.82,199.81,0.1]
[1753169588335,107.20755378,199.82,199.81,0.1]
[1753169588714,50.92189877,199.82,199.81,0.1]
[1753169588937,92.25755378,199.82,199.81,0.1]
[1753169590328,54.07468397,199.82,199.81,0.1]
[1753169590530,60.60304973,199.82,199.81,0.1]
[1753169591127,61.29304973,199.82,199.81,0.1]
[1753169591323,73.47591954,199.82,199.81,0.1]
[1753169591523,66.29755378,199.82,199.81,0.1]
[1753169591829,66.29755378,199.82,199.61,0.1]
[1753169591830,16.78468397,199.77,199.66,5.00836679]
[1753169592029,16.78468397,199.69,199.66,5.00836679]
[1753169592218,53.44468397,199.69,199.66,5.66836679]
[1753169592418,53.44468397,199.69,199.67,0.66]
[1753169592613,16.78468397,199.67,199.62,5.00951808]
[1753169592843,36.68,199.66,199.63,0.66]
[1753169593147,16.78468397,199.65,199.63,0.66]
[1753169594224,23.96304973,199.65,199.61,0.1]
[1753169594428,16.78468397,199.63,199.61,5.76972489]
[1753169594624,60.62304973,199.62,199.61,0.1]
[1753169594846,53.44468397,199.62,199.61,0.1]
[1753169596449,16.78468397,199.7,199.61,11.52169765]
[1753169596637,15.68,199.73,199.62,11.42169765]
[1753169596638,16.78468397,199.67,199.62,11.42169765]
[1753169596830,16.78468397,199.65,199.63,0.66]
[1753169597030,16.78468397,199.65,199.61,5.76976904]
[1753169597336,36.64,199.64,199.62,0.66]
[1753169598134,36.64,199.64,199.62,5.66951261]
[1753169598431,16.78468397,199.63,199.62,0.66]
[1753169599041,36.64,199.64,199.62,5.66948246]
[1753169599546,36.64,199.64,199.63,0.66]
[1753169600447,36.64,199.64,199.61,0.1]
[1753169600647,36.64,199.64,199.62,0.66]
[1753169600848,36.64,199.64,199.63,11.42169765]
[1753169601051,36.58,199.66,199.63,11.42169765]
[1753169601345,36.58,199.66,199.64,0.66]
[1753169601551,53.36468397,199.66,199.65,0.66]
[1753169602051,53.36468397,199.66,199.64,5.00901622]
[1753169602434,53.36468397,199.66,199.65,0.66]
[1753169602837,36.58,199.66,199.65,0.66]
[1753169603038,7.7229,199.72,199.67,26.0]
[1753169603341,53.36468397,199.71,199.68,11.42169765]
[1753169603655,16.78468397,199.71,199.69,11.42169765]
[1753169603834,7.6185,199.77,199.7,11.42169765]
[1753169604033,15.07319765,199.81,199.75,10.76169765]
[1753169604243,36.54,199.8,199.74,0.66]
[1753169604441,47.30169765,199.8,199.74,11.42169765]
[1753169604753,16.78468397,199.78,199.74,11.42169765]
[1753169604932,16.78468397,199.78,199.73,41.76845677]
[1753169605251,53.34468397,199.78,199.74,0.66]
[1753169605551,54.03468397,199.78,199.73,41.76845677]
[1753169605747,53.34468397,199.78,199.74,10.76169765]
[1753169606046,53.34468397,199.78,199.73,31.00675912]
[1753169606248,53.34468397,199.78,199.74,10.76169765]
[1753169606447,53.34468397,199.78,199.71,26.0]
[1753169606448,10.76169765,199.76,199.71,26.0]
[1753169606630,10.76169765,199.76,199.7,0.66]
[1753169606631,16.78468397,199.74,199.7,0.66]
[1753169607134,16.78468397,199.74,199.71,11.42169765]
[1753169607530,16.78468397,199.74,199.71,5.00710501]